fUSD/lending_fUSD_20240804
["ID","MTS","AMOUNT","RATE_DAILY","PERIOD"]
[334105479,1722768687588,-946.13,0.00024657,9]
[334105480,1722768687598,-799.81,0.00024657,9]
[334105481,1722768687607,-1093.98,0.00024657,9]
[334105482,1722768687617,-2434.05,0.00024657,9]
[334105483,1722768687626,-500.0,0.00024657,9]
[334105484,1722768687636,-685.69,0.00024657,9]
[334105485,1722768687646,-500.0,0.00024657,9]
[334105486,1722768687655,-946.13,0.00024657,9]
[334105487,1722768687665,-795.82,0.00024657,9]
[334105488,1722768687675,-799.81,0.00024657,9]
[334105489,1722768687686,-500.0,0.00024657,9]
[334105490,1722768687695,-2434.05,0.00024657,9]
[334105491,1722768687705,-685.69,0.00024657,9]
[334105492,1722768687715,-500.0,0.00024657,9]
[334105493,1722768687724,-1093.98,0.00024657,9]
[334105494,1722768687734,-946.13,0.00024657,9]
[334105495,1722768687745,-795.82,0.00024657,9]
[334105496,1722768687754,-799.81,0.00024657,9]
[334105497,1722768687764,-500.0,0.00024657,9]
[334105498,1722768687774,-685.69,0.00024657,9]
[334105499,1722768687783,-2434.05,0.00024657,9]
[334105500,1722768687793,-946.13,0.00024657,9]
[334105501,1722768687803,-799.81,0.00024657,9]
[334105502,1722768687812,-1093.98,0.00024657,9]
[334105503,1722768687822,-685.69,0.00024657,9]
[334105504,1722768687831,-2434.05,0.00024657,9]
[334105505,1722768687841,-500.0,0.00024657,9]
[334105506,1722768687851,-946.13,0.00024657,9]
[334105507,1722768687860,-799.81,0.00024657,9]
[334105508,1722768687871,-795.82,0.00024657,9]
[334105509,1722768687880,-1093.98,0.00024657,9]
[334105510,1722768687890,-500.0,0.00024657,9]
[334105511,1722768687899,-685.69,0.00024657,9]
[334105512,1722768687908,-946.13,0.00024657,9]
[334105513,1722768687918,-2434.1716278,0.00024657,9]
[334105514,1722768687928,-799.81,0.00024657,9]
[334105515,1722768687937,-795.82,0.00024657,9]
[334105516,1722768687947,-1093.98,0.00024657,9]
[334105517,1722768687957,-500.0,0.00024657,9]
[334105518,1722768687966,-2090.57,0.00024657,9]
[334105519,1722768687976,-685.69,0.00024657,9]
[334105520,1722768687986,-946.13,0.00024657,9]
[334105521,1722768687996,-799.81,0.00024657,9]
[334105522,1722768688006,-795.82,0.00024657,9]
[334105523,1722768688015,-1093.98,0.00024657,9]
[334105524,1722768688025,-500.0,0.00024657,9]
[334105525,1722768688035,-500.0,0.00024657,9]
[334105526,1722768688044,-2090.57,0.00024657,9]
[334105527,1722768688054,-946.13,0.00024657,9]
[334105528,1722768688063,-799.81,0.00024657,9]
[334105529,1722768688073,-795.82,0.00024657,9]
[334105530,1722768688083,-500.0,0.00024657,9]
[334105531,1722768688092,-1093.98,0.00024657,9]
[334105532,1722768688101,-473.6148288,0.00024657,9]
[334105533,1722768688111,-2090.57,0.00024657,9]
[334105534,1722768688120,-685.69,0.00024657,9]
[334105535,1722768688130,-799.81,0.00024657,9]
[334105536,1722768688140,-946.13,0.00024657,9]
[334105537,1722768688149,-500.0,0.00024657,9]
[334105538,1722768688159,-1093.98,0.00024657,9]
[334105539,1722768688169,-795.82,0.00024657,9]
[334105540,1722768688179,-2090.57,0.00024657,9]
[334105541,1722768688188,-685.69,0.00024657,9]
[334105542,1722768688199,-799.81,0.00024657,9]
[334105543,1722768688209,-946.13,0.00024657,9]
[334105544,1722768688219,-500.0,0.00024657,9]
[334105545,1722768688229,-1093.98,0.00024657,9]
[334105546,1722768688239,-685.78432744,0.00024657,9]
[334105547,1722768688249,-2090.57,0.00024657,9]
[334105548,1722768688259,-799.81,0.00024657,9]
[334105549,1722768688269,-500.0,0.00024657,9]
[334105550,1722768688279,-946.13,0.00024657,9]
[334105551,1722768688289,-500.0,0.00024657,9]
[334105552,1722768688299,-1093.98,0.00024657,9]
[334105553,1722768688308,-795.82,0.00024657,9]
[334105554,1722768688319,-2090.57,0.00024657,9]
[334105555,1722768688329,-500.0,0.00024657,9]
[334105556,1722768688339,-799.81,0.00024657,9]
[334105557,1722768688349,-946.13,0.00024657,9]
[334105558,1722768688359,-500.0,0.00024657,9]
[334105559,1722768688369,-1093.98,0.00024657,9]
[334105560,1722768688379,-795.82,0.00024657,9]
[334105561,1722768688389,-2090.57,0.00024657,9]
[334105562,1722768688399,-500.0,0.00024657,9]
[334105563,1722768688414,-799.81,0.00024657,9]
[334105564,1722768688425,-500.0,0.00024657,9]
[334105565,1722768688434,-946.13,0.00024657,9]
[334105566,1722768688445,-1093.98,0.00024657,9]
[334105567,1722768688455,-795.82,0.00024657,9]
[334105568,1722768688464,-2090.57,0.00024657,9]
[334105569,1722768688473,-799.81,0.00024657,9]
[334105570,1722768688484,-3892.73,0.00024657,9]
[334105571,1722768688494,-946.13,0.00024657,9]
[334105572,1722768688504,-1093.98,0.00024657,9]
[334105573,1722768688513,-3892.73,0.00024657,9]
[334105574,1722768688523,-946.13,0.00024657,9]
[334105575,1722768688532,-500.0,0.00024657,9]
[334105576,1722768688542,-799.81,0.00024657,9]
[334105577,1722768688551,-1093.98,0.00024657,9]
[334105578,1722768688561,-500.0,0.00024657,9]
[334105579,1722768688570,-795.82,0.00024657,9]
[334105580,1722768688580,-946.23211067,0.00024657,9]
[334105581,1722768688589,-2090.57,0.00024657,9]
[334105582,1722768688599,-799.81,0.00024657,9]
[334105583,1722768688609,-1093.98,0.00024657,9]
[334105584,1722768688618,-500.0,0.00024657,9]
[334105585,1722768688627,-3892.73,0.00024657,9]
[334105586,1722768688637,-795.82,0.00024657,9]
[334105587,1722768688646,-799.81,0.00024657,9]
[334105588,1722768688656,-1093.98,0.00024657,9]
[334105589,1722768688665,-2090.57,0.00024657,9]
[334105590,1722768688674,-500.0,0.00024657,9]
[334105591,1722768688683,-3892.73,0.00024657,9]
[334105592,1722768688693,-796.0113002,0.00024657,9]
[334105593,1722768688702,-799.81,0.00024657,9]
[334105594,1722768688712,-2090.57,0.00024657,9]
[334105595,1722768688723,-1093.98,0.00024657,9]
[334105596,1722768688732,-500.0,0.00024657,9]
[334105597,1722768688742,-500.0,0.00024657,9]
[334105598,1722768688751,-3892.73,0.00024657,9]
[334105599,1722768688761,-799.81,0.00024657,9]
[334105600,1722768688770,-1093.98,0.00024657,9]
[334105601,1722768688780,-500.0,0.00024657,9]
[334105602,1722768688789,-2090.57,0.00024657,9]
[334105603,1722768688799,-500.0,0.00024657,9]
[334105604,1722768688808,-3892.73,0.00024657,9]
[334105605,1722768688817,-799.81,0.00024657,9]
[334105606,1722768688826,-500.0,0.00024657,9]
[334105607,1722768688835,-1093.98,0.00024657,9]
[334105608,1722768688845,-2090.57,0.00024657,9]
[334105609,1722768688854,-500.0,0.00024657,9]
[334105610,1722768688864,-3892.73,0.00024657,9]
[334105611,1722768688873,-799.81,0.00024657,9]
[334105612,1722768688882,-500.0,0.00024657,9]
[334105613,1722768688892,-1094.03644124,0.00024657,9]
[334105614,1722768688901,-2090.57,0.00024657,9]
[334105615,1722768688911,-500.0,0.00024657,9]
[334105616,1722768688924,-800.0283597,0.00024657,9]
[334105617,1722768688934,-3892.73,0.00024657,9]
[334105618,1722768688944,-2090.57,0.00024657,9]
[334105619,1722768688953,-500.0,0.00024657,9]
[334105620,1722768688963,-500.0,0.00024657,9]
[334105621,1722768688972,-3892.73,0.00024657,9]
[334105622,1722768688981,-500.0,0.00024657,9]
[334105623,1722768688992,-547.76,0.00024657,9]
[334105624,1722768689001,-62.00778734,0.00024657,9]
[334105625,1722768689130,-437.99221266,0.00024657,9]
[334105626,1722768689140,-304.28871176,0.00024657,9]
[334105627,1722768689150,-3892.73,0.00024657,9]
[334105628,1722768689160,-547.76,0.00024657,9]
[334105629,1722768689170,-500.0,0.00024657,9]
[334105630,1722768689180,-500.0,0.00024657,9]
[334105631,1722768689190,-313.6985639,0.00024657,9]
[334105632,1722768689203,-511.70455756,0.00024657,9]
[334105633,1722768689214,-303.86,0.00024657,9]
[334105634,1722768689226,-927.22751103,0.00024657,9]
[334105635,1722768689238,-34.07936751,0.00024657,9]
[334105636,1722768689247,-465.92063249,0.00024657,9]
[334105637,1722768689258,-681.43362743,0.00024657,9]
[334105638,1722768689269,-846.52210567,0.00024657,9]
[334105639,1722768689281,-1898.85363441,0.00024657,9]
[334105640,1722768689291,-500.0,0.00024657,9]
[334105641,1722768689300,-547.76,0.00024657,9]
[334105642,1722768689309,-500.0,0.00024657,9]
[334105643,1722768689320,-500.0,0.00024657,9]
[334105644,1722768689329,-2090.57,0.00024657,9]
[334105645,1722768689338,-500.0,0.00024657,9]
[334105646,1722768689348,-3892.73,0.00024657,9]
[334105647,1722768689358,-500.0,0.00024657,9]
[334105648,1722768689367,-547.76,0.00024657,9]
[334105649,1722768689376,-500.0,0.00024657,9]
[334105650,1722768689386,-2090.57,0.00024657,9]
[334105651,1722768689395,-638.4,0.00024657,9]
[334105652,1722768689404,-415.54602846,0.00024657,9]
[334105653,1722768689422,-3477.18397154,0.00024657,9]
[334105654,1722768689431,-58.87885839,0.00024657,9]
[334105655,1722768689447,-441.12114161,0.00024657,9]
[334105656,1722768689461,-143.81777867,0.00024657,9]
[334105657,1722768689473,-306.20750487,0.00024657,9]
[334105658,1722768689483,-255.11641715,0.00024657,9]
[334105659,1722768689497,-244.88358285,0.00024657,9]
[334105660,1722768689507,-748.13141715,0.00024657,9]
[334105661,1722768689518,-585.97499997,0.00024657,9]
[334105662,1722768689530,-2558.62358288,0.00024657,9]
[334105663,1722768689541,-547.76,0.00024657,9]
[334105664,1722768689551,-2090.57,0.00024657,9]
[334105665,1722768689560,-500.0,0.00024657,9]
[334105666,1722768689570,-3892.73,0.00024657,9]
[334105667,1722768689580,-1958.6215477,0.00024657,9]
[334105668,1722768689593,-131.9484523,0.00024657,9]
[334105669,1722768689603,-204.07213788,0.00024657,9]
[334105670,1722768689615,-343.68786212,0.00024657,9]
[334105671,1722768689624,-60.75134408,0.00024657,9]
[334105672,1722768689862,-1659.575,0.00017259,2]
[334105673,1722768691396,-491.2429474,0.00017259,2]
[334105674,1722768691409,-2849.1820526,0.00017259,2]
[334105675,1722768691425,-535.57210001,0.00019319,2]
[334105676,1722768691435,-439.24865592,0.00024657,9]
[334105677,1722768691445,-3892.73,0.00024657,9]
[334105678,1722768691456,-547.76,0.00024657,9]
[334105679,1722768691473,-872.23,0.00024657,9]
[334105680,1722768691484,-3892.73,0.00024657,9]
[334105681,1722768691499,-500.0,0.00024657,9]
[334105682,1722768691509,-547.76,0.00024657,9]
[334105683,1722768691519,-872.23,0.00024657,9]
[334105684,1722768691530,-2090.57,0.00024657,9]
[334105685,1722768691539,-3892.73,0.00024657,9]
[334105686,1722768691549,-500.0,0.00024657,9]
[334105687,1722768691559,-547.76,0.00024657,9]
[334105688,1722768691570,-500.0,0.00024657,9]
[334105689,1722768691580,-547.76,0.00024657,9]
[334105690,1722768691590,-2090.57,0.00024657,9]
[334105691,1722768691599,-500.0,0.00024657,9]
[334105692,1722768691611,-500.0,0.00024657,9]
[334105693,1722768691620,-3892.73,0.00024657,9]
[334105694,1722768691631,-1931.7,0.00024657,9]
[334105695,1722768691641,-547.76,0.00024657,9]
[334105696,1722768691651,-500.0,0.00024657,9]
[334105697,1722768691661,-336.72767175,0.00024657,9]
[334105698,1722768691671,-2090.57,0.00024657,9]
[334105699,1722768691681,-3892.73,0.00024657,9]
[334105700,1722768691691,-1931.7,0.00024657,9]
[334105701,1722768691701,-547.76,0.00024657,9]
[334105702,1722768691711,-369.54239588,0.00024657,9]
[334105703,1722768691720,-2090.69,0.00024657,9]
[334105704,1722768691730,-1931.7,0.00024657,9]
[334105705,1722768691740,-547.76,0.00024657,9]
[334105706,1722768691749,-500.0,0.00024657,9]
[334105707,1722768691759,-1931.7,0.00024657,9]
[334105708,1722768691768,-3892.73,0.00024657,9]
[334105709,1722768691778,-547.76,0.00024657,9]
[334105710,1722768691789,-500.84459151,0.00024657,9]
[334105711,1722768691799,-1931.7,0.00024657,9]
[334105712,1722768691808,-3892.73,0.00024657,9]
[334105713,1722768691818,-547.76,0.00024657,9]
[334105714,1722768691827,-1931.7,0.00024657,9]
[334105715,1722768691836,-547.76,0.00024657,9]
[334105716,1722768691846,-3892.73,0.00024657,9]
[334105717,1722768691855,-500.0,0.00024657,9]
[334105718,1722768691865,-1931.7,0.00024657,9]
[334105719,1722768691875,-547.76,0.00024657,9]
[334105720,1722768691884,-647.20723755,0.00024657,9]
[334105721,1722768691894,-547.76,0.00024657,9]
[334105722,1722768691904,-1931.7,0.00024657,9]
[334105723,1722768691914,-3892.96238938,0.00024657,9]
[334105724,1722768691923,-1931.7,0.00024657,9]
[334105725,1722768691932,-547.76,0.00024657,9]
[334105726,1722768691942,-1931.7,0.00024657,9]
[334105727,1722768691951,-748.13,0.00024657,9]
[334105728,1722768691960,-500.0,0.00024657,9]
[334105729,1722768691970,-872.23,0.00024657,9]
[334105730,1722768691979,-547.76,0.00024657,9]
[334105731,1722768691990,-748.13,0.00024657,9]
[334105732,1722768691999,-547.76,0.00024657,9]
[334105733,1722768692009,-500.0,0.00024657,9]
[334105734,1722768692018,-748.13,0.00024657,9]
[334105735,1722768692027,-1931.7,0.00024657,9]
[334105736,1722768692038,-1220.66,0.00024657,9]
[334105737,1722768692047,-500.0,0.00024657,9]
[334105738,1722768692056,-547.76,0.00024657,9]
[334105739,1722768692065,-500.0,0.00024657,9]
[334105740,1722768692074,-872.23,0.00024657,9]
[334105741,1722768692083,-748.13,0.00024657,9]
[334105742,1722768692094,-1931.7,0.00024657,9]
[334105743,1722768692103,-1220.66,0.00024657,9]
[334105744,1722768692113,-500.0,0.00024657,9]
[334105745,1722768692122,-500.0,0.00024657,9]
[334105746,1722768692132,-547.76,0.00024657,9]
[334105747,1722768692142,-502.10710632,0.00024657,9]
[334105748,1722768692151,-684.22,0.00024657,9]
[334105749,1722768692161,-748.13,0.00024657,9]
[334105750,1722768692170,-1931.7,0.00024657,9]
[334105751,1722768692180,-872.23,0.00024657,9]
[334105752,1722768692189,-514.53665694,0.00024657,9]
[334105753,1722768692199,-1220.66,0.00024657,9]
[334105754,1722768692209,-500.0,0.00024657,9]
[334105755,1722768692219,-500.0,0.00024657,9]
[334105756,1722768692229,-684.22,0.00024657,9]
[334105757,1722768692239,-1220.66,0.00024657,9]
[334105758,1722768692249,-500.0,0.00024657,9]
[334105759,1722768692259,-1931.7,0.00024657,9]
[334105760,1722768692270,-547.78894908,0.00024657,9]
[334105761,1722768692280,-500.0,0.00024657,9]
[334105762,1722768692290,-500.0,0.00024657,9]
[334105763,1722768692300,-684.22,0.00024657,9]
[334105764,1722768692310,-496.98625332,0.00024657,9]
[334105765,1722768692322,-1220.66,0.00024657,9]
[334105766,1722768692332,-748.13,0.00024657,9]
[334105767,1722768692342,-872.23,0.00024657,9]
[334105768,1722768692351,-1931.7,0.00024657,9]
[334105769,1722768692361,-504.77247554,0.00024657,9]
[334105770,1722768692370,-684.22,0.00024657,9]
[334105771,1722768692380,-872.23,0.00024657,9]
[334105772,1722768692390,-1931.7,0.00024657,9]
[334105773,1722768692400,-684.22,0.00024657,9]
[334105774,1722768692411,-1220.66,0.00024657,9]
[334105775,1722768692422,-500.0,0.00024657,9]
[334105776,1722768692431,-872.23,0.00024657,9]
[334105777,1722768692441,-1931.7,0.00024657,9]
[334105778,1722768692451,-748.13,0.00024657,9]
[334105779,1722768692461,-684.22,0.00024657,9]
[334105780,1722768692470,-864.13,0.00024657,9]
[334105781,1722768692480,-500.0,0.00024657,9]
[334105782,1722768692493,-872.23,0.00024657,9]
[334105783,1722768692502,-1931.7,0.00024657,9]
[334105784,1722768692512,-748.13,0.00024657,9]
[334105785,1722768692521,-684.22,0.00024657,9]
[334105786,1722768692530,-864.13,0.00024657,9]
[334105787,1722768692540,-1220.66,0.00024657,9]
[334105788,1722768692549,-500.0,0.00024657,9]
[334105789,1722768692559,-872.23,0.00024657,9]
[334105790,1722768692568,-1931.7,0.00024657,9]
[334105791,1722768692578,-748.13,0.00024657,9]
[334105792,1722768692588,-684.22,0.00024657,9]
[334105793,1722768692597,-864.13,0.00024657,9]
[334105794,1722768692606,-500.0,0.00024657,9]
[334105795,1722768692615,-872.23,0.00024657,9]
[334105796,1722768692625,-500.0,0.00024657,9]
[334105797,1722768692635,-748.13,0.00024657,9]
[334105798,1722768692643,-684.22,0.00024657,9]
[334105799,1722768692652,-864.13,0.00024657,9]
[334105800,1722768692662,-1220.66,0.00024657,9]
[334105801,1722768692671,-500.0,0.00024657,9]
[334105802,1722768692680,-502.2562608,0.00024657,9]
[334105803,1722768692689,-872.23,0.00024657,9]
[334105804,1722768692699,-748.13,0.00024657,9]
[334105805,1722768692708,-500.0,0.00024657,9]
[334105806,1722768692718,-864.13,0.00024657,9]
[334105807,1722768692727,-1220.66,0.00024657,9]
[334105808,1722768692736,-500.0,0.00024657,9]
[334105809,1722768692746,-684.22,0.00024657,9]
[334105810,1722768692755,-872.23,0.00024657,9]
[334105811,1722768692765,-748.13,0.00024657,9]
[334105812,1722768692774,-864.13,0.00024657,9]
[334105813,1722768692783,-500.0,0.00024657,9]
[334105814,1722768692794,-684.22,0.00024657,9]
[334105815,1722768692804,-872.23,0.00024657,9]
[334105816,1722768692813,-500.0,0.00024657,9]
[334105817,1722768692823,-1220.66,0.00024657,9]
[334105818,1722768692832,-748.13,0.00024657,9]
[334105819,1722768692843,-4359.54,0.00024657,9]
[334105820,1722768692853,-864.13,0.00024657,9]
[334105821,1722768692863,-500.0,0.00024657,9]
[334105822,1722768692873,-872.23,0.00024657,9]
[334105823,1722768692883,-684.22,0.00024657,9]
[334105824,1722768692893,-748.13,0.00024657,9]
[334105825,1722768692903,-500.0,0.00024657,9]
[334105826,1722768692913,-4359.54,0.00024657,9]
[334105827,1722768692923,-864.13,0.00024657,9]
[334105828,1722768692933,-500.0,0.00024657,9]
[334105829,1722768692943,-684.22,0.00024657,9]
[334105830,1722768692953,-872.23,0.00024657,9]
[334105831,1722768692964,-500.0,0.00024657,9]
[334105832,1722768692974,-4359.54,0.00024657,9]
[334105833,1722768692983,-864.13,0.00024657,9]
[334105834,1722768692994,-606.09341615,0.00024657,9]
[334105835,1722768693003,-684.22,0.00024657,9]
[334105836,1722768693013,-500.0,0.00024657,9]
[334105837,1722768693023,-872.23,0.00024657,9]
[334105838,1722768693033,-748.13,0.00024657,9]
[334105839,1722768693043,-4359.54,0.00024657,9]
[334105840,1722768693052,-864.13,0.00024657,9]
[334105841,1722768693062,-684.22,0.00024657,9]
[334105842,1722768693071,-1220.66,0.00024657,9]
[334105843,1722768693080,-500.0,0.00024657,9]
[334105844,1722768693090,-872.23,0.00024657,9]
[334105845,1722768693099,-500.0,0.00024657,9]
[334105846,1722768693108,-748.13,0.00024657,9]
[334105847,1722768693118,-4359.54,0.00024657,9]
[334105848,1722768693128,-864.13,0.00024657,9]
[334105849,1722768693137,-684.22,0.00024657,9]
[334105850,1722768693146,-872.23,0.00024657,9]
[334105851,1722768693155,-1220.66,0.00024657,9]
[334105852,1722768693164,-418.89419703,0.00024657,9]
[334105853,1722768693174,-501.71135804,0.00024657,9]
[334105854,1722768693183,-748.13,0.00024657,9]
[334105855,1722768693193,-4359.54,0.00024657,9]
[334105856,1722768693202,-864.13,0.00024657,9]
[334105857,1722768693211,-684.22,0.00024657,9]
[334105858,1722768693220,-1186.19783118,0.00024657,9]
[334105859,1722768693287,-34.46216882,0.00024657,9]
[334105860,1722768693297,-748.13,0.00024657,9]
[334105861,1722768693306,-872.23,0.00024657,9]
[334105862,1722768693317,-500.0,0.00024657,9]
[334105863,1722768693327,-853.83273327,0.00024657,9]
[334105864,1722768693340,-3505.70726673,0.00024657,9]
[334105865,1722768693350,-684.22,0.00024657,9]
[334105866,1722768693359,-1220.66,0.00024657,9]
[334105867,1722768693369,-748.13,0.00024657,9]
[334105868,1722768693379,-500.0,0.00024657,9]
[334105869,1722768693389,-872.23,0.00024657,9]
[334105870,1722768693399,-384.73388234,0.00024657,9]
[334105871,1722768693855,-1801.94717962,0.00018529,2]
[334105872,1722768693866,-704.24108088,0.00018529,2]
[334105873,1722768693875,-1056.47839435,0.00024164,2]
[334105874,1722768693886,-162.51970723,0.00024657,9]
[334105875,1722768693990,-3812.28641043,0.00024657,9]
[334105876,1722768694000,-864.13,0.00024657,9]
[334105877,1722768694010,-1220.66,0.00024657,9]
[334105878,1722768694019,-748.13,0.00024657,9]
[334105879,1722768694029,-303.35867543,0.00024657,9]
[334105880,1722768694038,-872.23,0.00024657,9]
[334105881,1722768694048,-864.13,0.00024657,9]
[334105882,1722768694058,-4359.54,0.00024657,9]
[334105883,1722768694067,-1220.66,0.00024657,9]
[334105884,1722768694077,-748.13,0.00024657,9]
[334105885,1722768694087,-872.23,0.00024657,9]
[334105886,1722768694098,-1220.66,0.00024657,9]
[334105887,1722768694108,-4359.54,0.00024657,9]
[334105888,1722768694118,-872.45889163,0.00024657,9]
[334105889,1722768694128,-746.66813483,0.00024657,9]
[334105890,1722768694144,-1.46186517,0.00024657,9]
[334105891,1722768694154,-500.0,0.00024657,9]
[334105892,1722768694163,-1220.66,0.00024657,9]
[334105893,1722768694173,-307.90726082,0.00024657,9]
[334105894,1722768694189,-963.91063439,0.00024657,9]
[334105895,1722768694201,-457.57599352,0.00024657,9]
[334105896,1722768694218,-2541.60576451,0.00024657,9]
[334105898,1722768765446,400.0,0.0002591,120]
[334105899,1722768840582,3149671.14628912,0.00027,120]
[334105904,1722769546433,550.0,0.00011,2]
[334105908,1722769631496,39133.8863501,0.00011,2]
[334105909,1722769631523,86541.85157362,0.00011,2]
[334105910,1722769634033,20403.66038749,0.00011,2]
[334105953,1722769834501,-2728.47122291,0.00011959,2]
[334105954,1722769834511,-2114.83803813,0.0001236,2]
[334105955,1722769834522,-1610.50320022,0.0001236,2]
[334105956,1722769834534,-1274.65876165,0.0001236,2]
[334105957,1722769834547,-577.76651085,0.00012613,7]
[334105958,1722769834556,-1001.74770307,0.00012665,2]
[334105959,1722769834566,-493.26052295,0.00012681,2]
[334105960,1722769834576,-199.72150858,0.00012681,2]
[334105961,1722769834586,-155.54270475,0.00012681,2]
[334105962,1722769834595,-328.00522683,0.00012749,2]
[334105963,1722769834605,-264.29868304,0.00012818,2]
[334105964,1722769834615,-535.28924073,0.00013297,2]
[334105965,1722769834624,-172.86310496,0.0001331,2]
[334105966,1722769834635,-1233.18556382,0.0001331,2]
[334105967,1722769834645,-171.34,0.00013973,2]
[334105968,1722769834655,-499.99,0.00013973,2]
[334105969,1722769834667,-623.87590211,0.00015,2]
[334105970,1722769834677,-718.31999166,0.00017071,2]
[334105971,1722769834687,-535.57210001,0.00018,2]
[334105972,1722769834697,-3765.0,0.000182,3]
[334105973,1722769834707,-150.08,0.00019141,2]
[334105974,1722769834716,-370.30384095,0.00019999,2]
[334105975,1722769834726,-171.34,0.00020447,2]
[334105976,1722769834735,-1762.83385166,0.00020999,2]
[334105977,1722769834745,-225.57076581,0.00021,2]
[334105978,1722769834755,-2751.0,0.00021079,2]
[334105979,1722769834764,-250.0,0.00021239,2]
[334105980,1722769834777,-200.0,0.00021454,2]
[334105981,1722769834786,-200.0,0.00021498,2]
[334105982,1722769834795,-150.08,0.00021672,2]
[334105983,1722769834804,-169.35,0.00021851,2]
[334105984,1722769834815,-150.41,0.00021918,2]
[334105985,1722769834824,-179.29,0.00021918,2]
[334105986,1722769834834,-795.51608512,0.00022,2]
[334105987,1722769834844,-3000.0,0.000227,2]
[334105988,1722769834854,-400.0,0.00023031,2]
[334105989,1722769834864,-150.41,0.00023135,2]
[334105990,1722769834873,-180.0,0.00023321,2]
[334105991,1722769834883,-900.0,0.000239,8]
[334105992,1722769834892,-150.0,0.00024,9]
[334105993,1722769834902,-1800.0,0.00024,8]
[334105994,1722769834911,-2800.0,0.000241,8]
[334105997,1722769834921,-500.0,0.00024115,2]
[334106000,1722769834931,-546.38573207,0.00024124,2]
[334106002,1722769834940,-500.0,0.00024124,2]
[334106004,1722769834951,-3700.0,0.000242,8]
[334106006,1722769834962,-150.08,0.00024202,2]
[334106008,1722769834971,-798.0,0.0002425,2]
[334106010,1722769834982,-4700.0,0.000243,8]
[334106013,1722769834992,-150.41,0.00024353,2]
[334106015,1722769835002,-900.0,0.000244,8]
[334106017,1722769835013,-19521.66015795,0.00024444,2]
[334106019,1722769835037,-4819.72288881,0.00024444,2]
[334106020,1722769835048,-1800.0,0.00024444,2]
[334106027,1722769838233,-3125.04163485,0.00013333,2]
[334106031,1722769839401,-1079.7683237,0.00013333,2]
[334106032,1722769839418,-253.70482749,0.00013333,2]
[334106033,1722769839430,-1014.6173005,0.00013333,2]
[334106034,1722769839442,-1544.59791416,0.00013333,2]
[334106044,1722769840491,-328.00522683,0.00012696,2]
[334106046,1722769840501,-11811.47746215,0.00013333,2]
[334106048,1722769840512,-36787.18531317,0.00024444,2]
[334106058,1722769840598,-701.66503495,0.00024444,2]
[334106060,1722769840610,-1209.49724686,0.00024444,2]
[334106062,1722769840622,-3625.80047956,0.00024444,2]
[334106065,1722769840634,-603.45670818,0.00024444,2]
[334106067,1722769840646,-360.12499993,0.00024444,2]
[334106069,1722769840657,-875.92,0.00024444,2]
[334106071,1722769840668,-302.0,0.00024444,2]
[334106074,1722769840836,-1765.19999999,0.00024444,2]
[334106075,1722769840921,-2015.94855758,0.00024444,2]
[334106076,1722769840989,-300.0,0.00024444,2]
[334106194,1722769843233,-895.88804481,0.00024444,2]
[334106195,1722769843290,-823.52658831,0.00024444,2]
[334106212,1722769846829,-304.194,0.00023873,2]
[334106213,1722769846840,-242.19173207,0.00023873,2]